Cogmind - Beta 16 @@@ ROGUE MODE // 2025.10.28 @ 10:42:09 Player: Archaic Result: Destroyed by G-34 Mercenary with Small Laser Performance ------------- Evolutions (0) 0 Regions Visited (2) 400 Robots Destroyed (26) 130 Value Destroyed (577) 577 Prototype IDs (2) 40 Alien Tech Used (0) 0 Bonus (14) 14 TOTAL SCORE: 1161 Bonus ------- Follower Combat Kills 14 Cogmind --------- Core Integrity 0/250 Matter 251/300 Energy 248/250 System Corruption 0% Temperature Cool (56) Movement Walking (190) Ox1 Location -10/Mines Parts ------- > --- POWER (1) -------- Ion Engine > --- PROPULSION (2) --- Aluminum Leg > --- UTILITY (2) ------ Small Storage Unit Hardened Light Armor Plating > --- WEAPON (2) ------- Light Assault Rifle Light Assault Rifle > --- INVENTORY (8) ---- Aluminum Leg Aluminum Leg Improved Heat Sink Terrain Scan Processor Seismic Detector Hacking Suite Grenade Launcher Peak State ------------ > --- POWER ------------ Light Nuclear Core > --- PROPULSION ------- Aluminum Leg Aluminum Leg > --- UTILITY ---------- Small Storage Unit Improved Terrain Scanner > --- WEAPON ----------- Light Cannon Light Cannon > --- INVENTORY -------- Ion Engine Light Ion Engine Visual Processing Unit Terrain Scan Processor Seismic Detector Assault Rifle Light Cannon Grenade Launcher [Rating: 12] Favorites ----------- Power Ion Engine Engine Ion Engine Power Core Light Nuclear Core Propulsion Aluminum Leg Treads Light Treads Leg Aluminum Leg Utility Small Storage Unit Device Improved Terrain Scanner Storage Small Storage Unit Protection Hardened Light Armor Plating Weapon Light Cannon Energy Gun Small Laser Ballistic Gun Light Assault Rifle Ballistic Cannon Light Cannon Launcher Grenade Launcher Build | -11 -10 -10 ------- Run | Yrd Mat Min Slots Evolved . | . . . Power . | . . . Propulsion . | . . . Utility . | . . . Weapon . | . . . Parts Attached 20 | 9 7 4 Power 3 | 1 2 . Engine 2 | 1 1 . Core 1 | . 1 . Reactor . | . . . Propulsion 6 | 4 2 . Treads 2 | 2 . . Leg 4 | 2 2 . Wheel . | . . . Hover . | . . . Flight . | . . . Utility 3 | 2 . 1 Device 1 | 1 . . Storage 1 | 1 . . Processor . | . . . Hackware . | . . . Protection 1 | . . 1 Artifact . | . . . Weapon 8 | 2 3 3 Energy Gun 1 | 1 . . Energy Cannon . | . . . Ballistic Gun 3 | 1 . 2 Ballistic Cannon 2 | . 2 . Launcher 2 | . 1 1 Special Weapon . | . . . Impact Weapon . | . . . Slashing Weapon . | . . . Piercing Weapon . | . . . Special Melee Weapon . | . . . Unidentified Prototypes . | . . . Parts Lost 2 | . . 2 Power . | . . . Propulsion 1 | . . 1 Utility 1 | . . 1 Weapon . | . . . Highest Loss Streak 1 | . . 1 To Critical Strikes . | . . . Average Backups 6 | 2 7 7 Power . | . . . Propulsion . | . . 1 Utility 3 | . 2 4 Weapon 2 | 1 2 1 Tool/Special . | . . . Unused Backups 10 | . 4 6 Power . | . . . Propulsion 3 | . 1 2 Utility 5 | . 1 4 Weapon 2 | . 2 . Tool/Special . | . . . Average Slot Usage (%) 97 | . 100 94 Engine 9 | . 5 14 Core 4 | . 8 . Leg 27 | . 28 27 Device 11 | . 14 8 Storage 14 | . 14 14 Energy Gun 1 | . 1 . Ballistic Gun 10 | . 2 21 Ballistic Cannon 13 | . 22 3 Launcher 2 | . . 3 Peak Build Rating 12 | 9 12 10 Average Rating 9 | 5 10 8 On Entrance 6 | . 9 10 Avg Prop Armor Cover (%) . | . . . Naked Turns . | . . . Heaviest Build 17 | 12 17 17 Greatest Support 40 | 40 20 20 Greatest Overweight (x) . | . . . Average Overweight (x) . | . . . Largest Inventory Capacity 8 | 8 8 8 Average Capacity 7 | 7 8 8 Most Carried 8 | 4 8 8 Average Carried 6 | 2 7 7 Final Capacity 8 | 8 8 8 Final Carried 8 | 3 8 7 Class Distribution -------------------- 70% | Mutant 29% | Scavenger-Mutant Dominant Class ---------------- Scavenger-Mutant | -10/Materials Mutant | -10/Mines Resources | -11 -10 -10 ----------- Run | Yrd Mat Min Matter Collected 784 | 326 318 140 Remotely . | . . . Salvage Created 692 | 97 484 111 Parts 51 | 7 36 8 Haulers Intercepted 1 | . 1 . Recyclers Shooed . | . . . Parts Field Recycled . | . . . Retrieved Matter . | . . . Parts Self-Destructed . | . . . Prevented . | . . . Parts Restored . | . . . Kills | -11 -10 -10 ------- Run | Yrd Mat Min Combat Hostiles Destroyed 13 | . 11 2 Guns 2 | . 1 1 Cannons 7 | . 7 . AOE 4 | . 3 1 Classes Destroyed 9 | 2 6 1 Worker 2 | . 1 1 Builder 1 | . 1 . Tunneler 3 | 2 . 1 Hauler 1 | . 1 . Recycler 2 | 1 1 . Operator 1 | . 1 . Watcher 2 | . 2 . Swarmer 1 | . . 1 Grunt 13 | . 11 2 Best Kill Streak 9 | 3 9 2 Combat Bots Only 4 | . 4 1 Max Kills in Single Turn 3 | 1 3 2 Gunslinging . | . . . Exploded 2 | . 2 1 Melee . | . . . Uniques/NPCs Destroyed . | . . . Combat | -11 -10 -10 -------- Run | Yrd Mat Min Hostile Shots Fired 72 | . 52 20 Missed 17 | . 11 6 Hits 55 | . 41 14 Projectile 55 | . 41 14 Critical Strikes 2 | . 2 . Damage Taken 817 | . 563 254 Core 254 | . 154 100 Absorbed by Shields . | . . . Core Remaining (%) 100 | 100 . . Volleys Fired 67 | 12 40 15 Largest 2 | 2 2 2 Hottest 60 | 60 60 40 Shots Fired 129 | 24 79 26 Gun 62 | 24 16 22 Cannon 56 | . 56 . Launcher 11 | . 7 4 Special . | . . . Kinetic 102 | 12 68 22 Thermal 16 | 12 4 . Explosive 11 | . 7 4 Electromagnetic . | . . . Robot Hit Streak 7 | 4 6 7 Robot Miss Streak 4 | 3 3 4 Penetration Max . | . . . Secondary Targets . | . . . Shots Hit Robots 69 | 13 40 16 Core Hits 36 | 4 25 7 Critical Kills . | . . . Critical Parts Destroyed 1 | 1 . . Critical Strikes 2 | 1 1 . Destroy 1 | 1 . . Blast 1 | . 1 . Melee Attacks . | . . . Impact . | . . . Slashing . | . . . Piercing . | . . . Sneak Attacks . | . . . Combat Hostiles . | . . . Follow-up Attacks . | . . . Damage Inflicted 1655 | 164 1069 422 Guns 411 | 164 112 135 Cannons 468 | . 468 . Explosions 764 | . 489 275 Melee . | . . . Ramming 12 | . . 12 Kinetic 799 | 108 556 135 Thermal 80 | 56 24 . Explosive 764 | . 489 275 Electromagnetic . | . . . Impact . | . . . Slashing . | . . . Piercing . | . . . Highest Corruption . | . . . Average Corruption . | . . . Corruption Purged . | . . . Corruption Blocked . | . . . Overload Shots . | . . . Overflow Damage 18 | . . 18 Projectiles . | . . . Explosions 18 | . . 18 Melee . | . . . Knockbacks 5 | . 5 . Impact . | . . . Kinetic 5 | . 5 . Secondary . | . . . Self-Inflicted Damage 115 | . 47 68 Shots 5 | . 2 3 Rammed . | . . . Targets Rammed 2 | . 1 1 Kicked 2 | . 1 1 Crushed . | . . . Highest Temperature 103 | . 103 65 Average Temperature 36 | . 39 20 Received Heat Transfer 414 | . 321 93 Siege Activations . | . . . Martial Activations . | . . . Shielding Activations . | . . . Robots Disrupted . | . . . Combat Hostiles . | . . . Robots Corrupted . | . . . Combat Hostiles . | . . . Parts Fried . | . . . Impact Corruptions . | . . . Robots Melted . | . . . Combat Hostiles . | . . . Parts Melted . | . . . Heat Transferred 175 | 125 50 . Parts Sabotaged . | . . . Parts Stolen . | . . . Parts Stripped . | . . . Power Chain Reactions . | . . . Alert | -11 -10 -10 ------- Run | Yrd Mat Min Maximum Alert Level 1 | . 1 . Low Security (%) 82 | 100 64 100 Level 1 17 | . 35 . Level 2 . | . . . Level 3 . | . . . Level 4 . | . . . Level 5 . | . . . High Security . | . . . Max Security . | . . . Peak Influence 245 | 10 245 91 Initial 70 | . . 70 Average 94 | . 164 34 Influence Increases 582 | 15 438 129 Destroy 0b10 Robot/C 300 | . 220 80 Destroy 0b10 Robot/NC 60 | 15 35 10 Destroy Leader 66 | . 56 10 Allied During Kill 13 | . . 13 Successful Hack 32 | . 32 . Disable Machine 45 | . 45 . Destroy Structure 36 | . 20 16 Lose Combat Pursuer 30 | . 30 . Influence Decreases 582 | 15 258 309 Entered New Map 110 | . . 110 Time Decay 456 | 15 258 183 Lost Part 10 | . . 10 Lost Ally 6 | . . 6 Squads Dispatched 2 | . 2 . Investigation . | . . . Extermination . | . . . Reinforcement 2 | . 2 . Assault . | . . . Garrison . | . . . Intercept . | . . . Searches Triggered . | . . . Construction Impeded . | . . . Haulers Reinforced . | . . . Active Scanning Responses . | . . . Cargo Convoy Interrupts . | . . . Stealth | -11 -10 -10 --------- Run | Yrd Mat Min Distress Signals 1 | . 1 . Communications Jammed . | . . . Distress Signals . | . . . Times Spotted 25 | . 18 7 Peak Tracking Total 5 | . 5 3 Tactical Retreats 1 | . 1 . Traps | -11 -10 -10 ------- Run | Yrd Mat Min Traps Triggered . | . . . Indirectly . | . . . Trap Hack Attempts . | . . . Triggered . | . . . Disarmed . | . . . Reprogrammed . | . . . Reused . | . . . Traps Extracted . | . . . Installed . | . . . Triggered . | . . . Machines | -11 -10 -10 ---------- Run | Yrd Mat Min Machines Disabled 3 | . 3 . Max in Single Turn 1 | . 1 . Machines Repaired . | . . . Machines Dismantled . | . . . Machines Sabotaged . | . . . Overloaded Fab Kills . | . . . Hacking | -11 -10 -10 --------- Run | Yrd Mat Min Machines Accessed 5 | . 5 . Terminals 5 | . 5 . Fabricators . | . . . Repair Stations . | . . . Recycling Units . | . . . Scanalyzers . | . . . Garrison Access . | . . . Total Hacks 15 | . 15 . Successful 10 | . 10 . Failed 5 | . 5 . Catastrophic 1 | . 1 . Database Lockouts . | . . . Manual 9 | . 9 . Terminals 15 | . 15 . Fabricators . | . . . Repair Stations . | . . . Recycling Units . | . . . Scanalyzers . | . . . Garrison Access . | . . . Terminal Hacks 6 | . 6 . Record 2 | . 2 . Prototype ID Bank 1 | . 1 . Branch Access Points 1 | . 1 . Locate Traps 1 | . 1 . Zone Layout 1 | . 1 . Fabricator Hacks . | . . . Repair Station Hacks . | . . . Recycling Unit Hacks . | . . . Scanalyzer . | . . . Garrison Access Hacks . | . . . Unauthorized Hacks 4 | . 4 . Terminals 4 | . 4 . Botnet 4 | . 4 . Fabricators . | . . . Repair Stations . | . . . Recycling Units . | . . . Scanalyzers . | . . . Garrison Access . | . . . Data Cores Recovered . | . . . Used . | . . . Hacking Detections 5 | . 5 . Full Trace Events . | . . . Feedback Events . | . . . Feedback Blocked . | . . . Robot Schematics Acquired . | . . . Robots Built . | . . . Authchips . | . . . Time . | . . . Total Robot Build Rating . | . . . Part Schematics Acquired . | . . . Parts Built . | . . . Authchips . | . . . Time . | . . . Total Part Build Rating . | . . . Part Studies Acquired . | . . . Parts Repaired . | . . . Time . | . . . Parts Recycled . | . . . Recycled Matter . | . . . Retrieved Matter . | . . . Retrieved Components . | . . . Parts Scanalyzed . | . . . Part Schematics Acquired . | . . . Parts Damaged . | . . . Bothacking | -11 -10 -10 ------------ Run | Yrd Mat Min Used RIF Installer . | . . . Robots Hacked . | . . . Non-combat . | . . . Combat . | . . . Robot Hacks Applied . | . . . Relay Couplers Released . | . . . Fabnet Peak Effective % . | . . . Robots Rewired . | . . . Allies Hacked . | . . . Hacks Repelled . | . . . Allies | -11 -10 -10 -------- Run | Yrd Mat Min Total Allies 3 | . . 3 Largest Group 3 | . . 3 Highest-Rated Group 40 | . . 40 Highest-Rated Ally 16 | . . 16 Total Orders . | . . . Ally Attacks 23 | . . 23 Total Damage 235 | . . 235 Kills 2 | . . 2 Allies Corrupted . | . . . Allies Melted . | . . . Intel | -11 -10 -10 ------- Run | Yrd Mat Min Active Infowar (turns) 925 | 32 604 289 Terrain 925 | 32 604 289 Robot Analysis Total . | . . . Derelict Logs Recovered 1 | . . 1 Drone Launches . | . . . Drone Recoveries . | . . . Exploration | -11 -10 -10 ------------- Run | Yrd Mat Min Turns Passed 1230 | 137 604 489 Spaces Moved 775 | 68 354 353 Core 9 | 9 . . Treads 4 | 4 . . Legs 762 | 55 354 353 Wheels . | . . . Hover . | . . . Flight . | . . . Fastest Speed 50 | 50 120 120 Average Speed 119 | 113 120 120 Slowest Speed 160 | 160 120 120 Overloaded Moves . | . . . Propulsion Burnouts . | . . . Robots Hopped . | . . . Potential Cave-ins . | . . . Cave-ins Triggered . | . . . Exploration Rate (%) 48 | 5 77 64 Regions Visited 2 Branch Regions 1 Pre-discovered Areas 2 | . . 2 Known Exits Taken 1 | . 1 . Unknown Exits Taken 1 | 1 . . Scrap Searched 1 | . . 1 Spaces Dug . | . . . Terrain Destroyed 42 | . 22 20 Melee . | . . . Projectile . | . . . AOE 42 | . 22 20 Terrain Rammed . | . . . Walls Destroyed . | . . . Machines Disabled . | . . . Actions | -11 -10 -10 --------- Run | Yrd Mat Min Total 961 | 104 460 397 Wait 52 | 2 32 18 Move 773 | 67 353 353 Hop . | . . . Pick Up 30 | 12 16 2 Fast Attach . | . . . Attach 8 | 7 . 1 Detach . | . . . Swap 14 | 2 7 5 Drop 15 | 2 11 2 Fire 67 | 12 40 15 Melee . | . . . Ram . | . . . Kick 2 | . 1 1 Crush . | . . . Escape Stasis . | . . . Rewire . | . . . Trap . | . . . Miscellaneous . | . . . Route ------- -11/Scrapyard -10/Materials (discovered 5 exits: [*Mat x2] / *Min x2 / [Sub]) -10/Mines (discovered 2 exits: [*Mat x2]) History --------- Turn | Location | Event 6 | -11/Scrapyard | Discovered new exit (range 15) 138 | -11/Scrapyard | Entered Materials 237 | -10/Materials | Discovered new exit (range 10) 414 | -10/Materials | Core integrity fell below 50% 502 | -10/Materials | Discovered new exit (range 15) 611 | -10/Materials | Build established: Scavenger-Mutant 620 | -10/Materials | Discovered new exit (range 14) 635 | -10/Materials | Identified exit to Mines 677 | -10/Materials | Discovered new exit (range 4) 742 | -10/Materials | Entered Mines 786 | -10/Mines | Assisted by bots powering up and referring to "LRC-V3" 800 | -10/Mines | Discovered new exit (range 9) 862 | -10/Mines | Discovered new exit (range 7) 867 | -10/Mines | Learned location of Storage (-9) 949 | -10/Mines | Build established: Mutant 1032 | -10/Mines | Core integrity fell below 20% 1135 | -10/Mines | Learned location of Zion (-6) 1231 | -10/Mines | Destroyed by G-34 Mercenary with Small Laser Last Messages --------------- 01031_ T-07 Excavator destroyed. 01031_ Mercenary 1a destroyed. 01032_ The unstable cave ceiling collapses. 01032_ Destroyed Flight Unit. 01033_ S-10 Pest destroyed. 01066_ K-01 Serf cleans the Core Extractor. 01071_ K-01 Serf collects debris. 01073_ K-01 Serf cleans the Core Extractor. 01074_ Kicked K-01 Serf. 01074_ K-01 Serf destroyed. 01074_ K-01 Serf collects debris. 01075_ Acquired 23 matter. 01077_ K-01 Serf collects debris. 01080_ K-01 Serf cleans the Core Extractor. 01108_ R-06 Scavenger collects Lgt. Ion Engine. 01135_ Acquired derelict log, extracted data. World map updated: -6/Zion. 01222_ Trooper 1b destroyed. 01225_ Trooper 1a destroyed. 01226_ Aluminum Leg destroyed. Map ----- +----------------------------------------------------+ | ??## #??# #??????????##?????????????????????? | | #??# #??# #?????????? ##???????????????????? | | ???# #??# #?????????? #???????????????????? | | #??# #??# ####???????? #???????????????????? | | ???# #??# #???????? #???????????????????? | | ##?# #### ## #???????? ##??????????????????? | | ### ## ## #???????? #??????????????????? | | ## ## #### #????????# #??????????????????? | | ## #??# #????????# ##########?????????? | | ## #??# ########## #???????? | | #??# ## ######????????????? | | #####??# ### #?????????????????? | | ##??????# #?# """" ##?????????????????? | | #?????### #?## """" #??????????????????? | | ######## ##?## """" ##?????????????????? | | #??## ##????????????????? | | #???### #????????????????? | | ####### #?????### ##????????????????? | | ###????# ##???????## #?????????????????? | | #??????# ###?????????# #?????????????????? | | #??#???## ##???????????# #?????????????????? | | ????#???####????????????#==#?????????????????? | | ?????????????????#??????#*%#?????????????????? | | ?????#?????#????????????#[!#?????????????????? | | ?#??????????????????????# [#?????????????????? | | ?####??????????#????????#@%#?????????????????? | | ## #??#????????????????#gg#?????????????????? | | # ###?????????????? ?? ????????????????? | | ## #?????????????????? # ???????????????? | | ## #???????????? ????##### ??????????????? | | ## #??????????????????????? ????????????? | | # #??????????????????????? ##???????????? | | < #???#????#??????????????? ##????????????? | | #??###########????????????#?????????????? | | # ###?# #??????????????????????????? | | # ####??# #??????????????????????????? | | # #?????# """ """ #??????????????????????????? | | # #?????# """ """ #??????????????????????????? | | # ####### """ """ #??????????????????????????? | | #??????????????????????????? | | ######### #??????????????????????????? | | ##??????# #??????????????????????????? | | ?????#??###########??????????????????????????? | | ???#?#??????????#????????????????????????????? | | #?????????#?#????????????????????????????????? | | ???????#?????????????????????????????????????? | | ???????##????????????????????????????????????? | | | | | | | +----------------------------------------------------+ Best States ------------- Heat Dissipation 25 Energy Generation 14 Energy Capacity 250 Matter Stores 300 Matter Capacity 300 Sight Range 16 Terrain Scan Range 16 Terrain Scan Density 10 Armor Coverage 150 Evasion (%) 55 Recoil Reduction 2 Item Schematics ----------------- None Robot Schematics ------------------ None Fabricated ------------ Nothing Repaired ---------- Nothing Studied --------- None Alien Tech Used ----------------- None Achievements -------------- None Challenges ------------ None Game ------ Seed XenonColdSink Manual? 0 Play Time 00:15:03 Cumulative 16.4 hours Start 2025.10.28 @ 10:29:56 End 2025.10.28 @ 10:42:09 Sessions 1 Manual Loads 0 Difficulty Rogue Special Mode None Game No. 45 Rogue 31 Adventurer 14 Explorer 0 Win Type - Total 0 Types 0/0/0/0/0/0/0/0/0/0 Lore% 13 Gallery% 21 Achievement% 13 Wizard Run 0 Options --------- Layout 0 ASCII 0 Keyboard 0 Movement Numpad Keybinds 0 Fullscreen 1 Font 20/SmallcapsGlow Map View 66x50 Zoom Use 0% Tactical HUD 1 Map Filters NONE Filters NONE Steam 1 RUN: a993a15c-3d73-49b0-a4c5-90720dcf5d19